Cogmind - Beta 17.1 --- EXPLORER MODE // 2026.09.11 @ 20:28:30 Player: JMobius Result: Destroyed by D-53 Grenadier with Mini Grenade Launcher Performance ------------- Evolutions (0) 0 Regions Visited (2) 400 Robots Destroyed (11) 55 Value Destroyed (214) 214 Prototype IDs (4) 80 Alien Tech Used (0) 0 Bonus (0) 0 TOTAL SCORE: 749 Bonus ------- None Cogmind --------- Core Integrity 0/250 Matter 300/300 Energy 100/100 System Corruption 0% Temperature Cool (0) Movement Core (700) Ox13 Location -10/Mines Parts ------- > --- POWER (1) -------- (None) > --- PROPULSION (2) --- (None) > --- UTILITY (3) ------ High-capacity Storage Unit Utility Shielding > --- WEAPON (2) ------- (None) > --- INVENTORY (20) --- Ion Engine Heat Sink Heat Sink Large Storage Unit Large Storage Unit Cargo Storage Unit Large Battery (200) High-capacity Battery (250) Terrain Scanner Targeting Computer Targeting Computer ECM Suite Small Laser Small Laser Beam Rifle Beam Rifle Beam Cannon Beam Cannon Peak State ------------ > --- POWER ------------ Ion Engine > --- PROPULSION ------- Light Treads Light Treads > --- UTILITY ---------- High-capacity Storage Unit Utility Shielding Light Armor Plating > --- WEAPON ----------- EM Pulse Gun Beam Cannon > --- INVENTORY -------- Medium Storage Unit Medium Storage Unit Large Storage Unit Large Storage Unit Cargo Storage Unit Large Battery High-capacity Battery Terrain Scanner Targeting Computer Targeting Computer ECM Suite Small Laser Small Laser Beam Rifle Beam Rifle Beam Cannon Beam Cannon [Rating: 10] Favorites ----------- Power Ion Engine Engine Ion Engine Propulsion Light Treads Treads Light Treads Utility Light Armor Plating Storage High-capacity Storage Unit Protection Light Armor Plating Weapon EM Pulse Gun Energy Gun EM Pulse Gun Energy Cannon Beam Cannon Build | -11 -10 -10 ------- Run | Yrd Mat Min Slots Evolved 1 | . 1 . Power . | . . . Propulsion . | . . . Utility 1 | . 1 . Weapon . | . . . Parts Attached 11 | 8 3 . Power 1 | 1 . . Engine 1 | 1 . . Core . | . . . Reactor . | . . . Propulsion 2 | 2 . . Treads 2 | 2 . . Leg . | . . . Wheel . | . . . Hover . | . . . Flight . | . . . Utility 5 | 3 2 . Device . | . . . Storage 3 | 1 2 . Processor . | . . . Hackware . | . . . Protection 2 | 2 . . Artifact . | . . . Weapon 3 | 2 1 . Energy Gun 2 | 2 . . Energy Cannon 1 | . 1 . Ballistic Gun . | . . . Ballistic Cannon . | . . . Launcher . | . . . Special Weapon . | . . . Impact Weapon . | . . . Slashing Weapon . | . . . Piercing Weapon . | . . . Special Melee Weapon . | . . . Unidentified Prototypes . | . . . Parts Lost 6 | . . 6 Power 1 | . . 1 Propulsion 2 | . . 2 Utility 1 | . . 1 Weapon 2 | . . 2 Highest Loss Streak 6 | . . 6 To Critical Strikes . | . . . Average Backups 14 | 4 14 18 Power . | . . 1 Propulsion . | . . . Utility 8 | 2 9 11 Weapon 4 | . 5 6 Tool/Special . | . . . Unused Backups 17 | . 1 16 Power 1 | . . 1 Propulsion . | . . . Utility 11 | . 1 10 Weapon 5 | . . 5 Tool/Special . | . . . Average Slot Usage (%) 99 | . 99 93 Engine 11 | . 12 11 Treads 24 | . 24 22 Storage 12 | . 12 12 Protection 24 | . 25 23 Energy Gun 12 | . 12 10 Energy Cannon 11 | . 11 12 Peak Build Rating 10 | 7 10 10 Average Rating 9 | 5 9 9 On Entrance 5 | . 7 10 Avg Prop Armor Cover (%) . | . . . Naked Turns . | . . . Heaviest Build 54 | 21 54 54 Greatest Support 40 | 40 40 40 Greatest Overweight (x) 14 | 1 2 14 Average Overweight (x) . | . . 1 Largest Inventory Capacity 20 | 10 20 20 Average Capacity 17 | 8 18 20 Most Carried 20 | 5 20 19 Average Carried 14 | 4 15 19 Final Capacity 20 | 10 20 20 Final Carried 19 | 4 19 19 Class Distribution -------------------- 100% | Hacker-Mutant Dominant Class ---------------- Hacker-Mutant | -10/Materials Hacker-Mutant | -10/Mines Resources | -11 -10 -10 ----------- Run | Yrd Mat Min Matter Collected 304 | 197 107 . Remotely . | . . . Salvage Created 336 | . 336 . Parts 21 | . 21 . Haulers Intercepted . | . . . Recyclers Shooed . | . . . Parts Field Recycled . | . . . Retrieved Matter . | . . . Parts Self-Destructed . | . . . Prevented . | . . . Parts Restored . | . . . Kills | -11 -10 -10 ------- Run | Yrd Mat Min Combat Hostiles Destroyed 9 | . 9 . Guns 7 | . 7 . Cannons 2 | . 2 . Classes Destroyed 4 | . 4 . Recycler 1 | . 1 . Watcher 1 | . 1 . Swarmer 6 | . 6 . Grunt 3 | . 3 . Best Kill Streak 3 | . 3 . Combat Bots Only 3 | . 3 . Max Kills in Single Turn 1 | . 1 . Gunslinging . | . . . Exploded . | . . . Melee . | . . . Uniques/NPCs Destroyed . | . . . Combat | -11 -10 -10 -------- Run | Yrd Mat Min Hostile Shots Fired 53 | . 18 35 Missed 5 | . 3 2 Hits 48 | . 15 33 Projectile 48 | . 15 33 AOE 33 | . . 33 Damage Taken 905 | . 80 825 Core 263 | . 16 247 Absorbed by Shields . | . . . Redirected to Shielding 15 | . 1 14 Ignored by Resistances 540 | . 55 485 Regen/Repaired (Parts) 17 | . 17 . Core Remaining (%) 100 | 100 . . Volleys Fired 17 | . 17 . Largest 2 | . 2 . Hottest 100 | . 100 . Shots Fired 34 | . 34 . Gun 17 | . 17 . Cannon 17 | . 17 . Launcher . | . . . Special . | . . . Kinetic . | . . . Thermal 17 | . 17 . Explosive . | . . . Electromagnetic 17 | . 17 . Robot Hit Streak 8 | . 8 . Robot Miss Streak 1 | . 1 . Penetration Max . | . . . Secondary Targets . | . . . Shots Hit Robots 22 | . 22 . Core Hits 12 | . 12 . Critical Kills . | . . . Critical Parts Destroyed . | . . . Critical Strikes . | . . . Melee Attacks . | . . . Impact . | . . . Slashing . | . . . Piercing . | . . . Sneak Attacks . | . . . Combat Hostiles . | . . . Follow-up Attacks . | . . . Damage Inflicted 333 | . 333 . Guns 154 | . 154 . Cannons 143 | . 143 . Explosions 36 | . 36 . Melee . | . . . Ramming . | . . . Kinetic . | . . . Thermal 179 | . 179 . Explosive . | . . . Electromagnetic 154 | . 154 . Impact . | . . . Slashing . | . . . Piercing . | . . . Highest Corruption . | . . . Average Corruption . | . . . Corruption Purged . | . . . Corruption Blocked . | . . . Overload Shots . | . . . Overflow Damage 6 | . 6 . Projectiles . | . . . Explosions 6 | . 6 . Melee . | . . . Knockbacks . | . . . Impact . | . . . Kinetic . | . . . Secondary . | . . . Self-Inflicted Damage . | . . . Shots . | . . . Rammed . | . . . Targets Rammed . | . . . Kicked . | . . . Crushed . | . . . Highest Temperature 210 | . 210 . Average Temperature 66 | . 66 . Received Heat Transfer 24 | . 24 . Siege Activations . | . . . Martial Activations . | . . . Shielding Activations . | . . . Robots Disrupted . | . . . Combat Hostiles . | . . . Robots Corrupted . | . . . Combat Hostiles . | . . . Parts Fried . | . . . Impact Corruptions . | . . . Robots Melted . | . . . Combat Hostiles . | . . . Parts Melted . | . . . Heat Transferred 346 | . 346 . Parts Sabotaged . | . . . Parts Stolen . | . . . Parts Stripped . | . . . Power Chain Reactions 1 | . 1 . Alert | -11 -10 -10 ------- Run | Yrd Mat Min Maximum Alert Level . | . . . Low Security (%) 100 | 100 100 100 Level 1 . | . . . Level 2 . | . . . Level 3 . | . . . Level 4 . | . . . Level 5 . | . . . High Security . | . . . Max Security . | . . . Peak Influence 81 | . 81 . Initial . | . . . Average 4 | . 6 . Influence Increases 284 | . 284 . Destroy 0b10 Robot/C 180 | . 180 . Destroy 0b10 Robot/NC 10 | . 10 . Destroy Leader 42 | . 42 . Successful Hack 21 | . 21 . Disable Machine 12 | . 12 . Destroy Structure 4 | . 4 . Lose Combat Pursuer 15 | . 15 . Influence Decreases 284 | . 284 . Time Decay 284 | . 284 . Squads Dispatched 1 | . 1 . Investigation 1 | . 1 . Extermination . | . . . Reinforcement . | . . . Assault . | . . . Garrison . | . . . Intercept . | . . . Searches Triggered . | . . . Construction Impeded . | . . . Haulers Reinforced . | . . . Active Scanning Responses . | . . . Cargo Convoy Interrupts . | . . . Stealth | -11 -10 -10 --------- Run | Yrd Mat Min Distress Signals 1 | . 1 . Communications Jammed . | . . . Distress Signals . | . . . Times Spotted 18 | . 15 3 Peak Tracking Total 3 | . 3 2 Tactical Retreats 1 | . 1 . Traps | -11 -10 -10 ------- Run | Yrd Mat Min Traps Triggered 1 | . 1 . Indirectly . | . . . Trap Hack Attempts . | . . . Triggered . | . . . Disarmed . | . . . Reprogrammed . | . . . Reused . | . . . Traps Extracted . | . . . Installed . | . . . Triggered . | . . . Machines | -11 -10 -10 ---------- Run | Yrd Mat Min Machines Disabled 3 | . 3 . Max in Single Turn 1 | . 1 . Machines Repaired . | . . . Machines Dismantled . | . . . Machines Sabotaged . | . . . Overloaded Fab Kills . | . . . Hacking | -11 -10 -10 --------- Run | Yrd Mat Min Machines Accessed 11 | . 11 . Terminals 8 | . 8 . Fabricators . | . . . Repair Stations 1 | . 1 . Recycling Units 2 | . 2 . Scanalyzers . | . . . Garrison Access . | . . . Total Hacks 45 | . 45 . Successful 33 | . 33 . Failed 12 | . 12 . Catastrophic . | . . . Database Lockouts . | . . . Manual . | . . . Terminals 38 | . 38 . Fabricators . | . . . Repair Stations 3 | . 3 . Recycling Units 4 | . 4 . Scanalyzers . | . . . Garrison Access . | . . . Terminal Hacks 26 | . 26 . Record 10 | . 10 . Robot Analysis 1 | . 1 . Prototype ID Bank 4 | . 4 . Branch Access Points 1 | . 1 . Emergency Access Points 2 | . 2 . Locate Traps 2 | . 2 . Dispatch Records 1 | . 1 . Security Status 1 | . 1 . Recall Investigation 1 | . 1 . Hauler Manifests 1 | . 1 . Zone Layout 2 | . 2 . Fabricator Hacks . | . . . Repair Station Hacks 3 | . 3 . Scan Component 2 | . 2 . Repair 1 | . 1 . Recycling Unit Hacks 4 | . 4 . Process 1 | . 1 . Report Inventory 2 | . 2 . Retrieve Matter 1 | . 1 . Scanalyzer . | . . . Garrison Access Hacks . | . . . Unauthorized Hacks . | . . . Terminals . | . . . Fabricators . | . . . Repair Stations . | . . . Recycling Units . | . . . Scanalyzers . | . . . Garrison Access . | . . . Data Cores Recovered . | . . . Used . | . . . Hacking Detections 9 | . 9 . Full Trace Events 4 | . 4 . Feedback Events . | . . . Feedback Blocked . | . . . Robot Schematics Acquired . | . . . Robots Built . | . . . Authchips . | . . . Time . | . . . Total Robot Build Rating . | . . . Part Schematics Acquired . | . . . Parts Built . | . . . Authchips . | . . . Time . | . . . Total Part Build Rating . | . . . Part Studies Acquired . | . . . Parts Repaired 1 | . 1 . Time 13 | . 13 . Parts Recycled . | . . . Recycled Matter 26 | . 26 . Retrieved Matter 26 | . 26 . Retrieved Components . | . . . Parts Scanalyzed . | . . . Part Schematics Acquired . | . . . Parts Damaged . | . . . Bothacking | -11 -10 -10 ------------ Run | Yrd Mat Min Used RIF Installer . | . . . Robots Hacked . | . . . Non-combat . | . . . Combat . | . . . Robot Hacks Applied . | . . . Relay Couplers Released . | . . . Fabnet Peak Effective % . | . . . Robots Rewired . | . . . Allies Hacked . | . . . Hacks Repelled . | . . . Allies | -11 -10 -10 -------- Run | Yrd Mat Min Total Allies . | . . . Largest Group . | . . . Highest-Rated Group . | . . . Highest-Rated Ally . | . . . Total Orders . | . . . Ally Attacks . | . . . Total Damage . | . . . Kills . | . . . Allies Corrupted . | . . . Allies Melted . | . . . Intel | -11 -10 -10 ------- Run | Yrd Mat Min Active Infowar (turns) . | . . . Robot Analysis Total 1 | . 1 . Derelict Logs Recovered 1 | . . 1 Drone Launches . | . . . Drone Recoveries . | . . . Exploration | -11 -10 -10 ------------- Run | Yrd Mat Min Turns Passed 2453 | 212 1936 305 Spaces Moved 1065 | 92 851 122 Core 7 | 4 . 3 Treads 1058 | 88 851 119 Legs . | . . . Wheels . | . . . Hover . | . . . Flight . | . . . Fastest Speed 50 | 50 160 240 Average Speed 218 | 210 214 254 Slowest Speed 750 | 240 320 750 Overloaded Moves . | . . . Propulsion Burnouts . | . . . Robots Hopped . | . . . Potential Cave-ins . | . . . Cave-ins Triggered . | . . . Exploration Rate (%) 48 | 5 98 42 Regions Visited 2 Branch Regions 1 Pre-discovered Areas . | . . . Known Exits Taken 2 | 1 1 . Unknown Exits Taken . | . . . Scrap Searched . | . . . Spaces Dug . | . . . Terrain Destroyed 2 | . 2 . Melee . | . . . Projectile . | . . . AOE 2 | . 2 . Terrain Rammed . | . . . Walls Destroyed . | . . . Machines Disabled . | . . . Actions | -11 -10 -10 --------- Run | Yrd Mat Min Total 1161 | 110 929 122 Wait 37 | . 37 . Move 1063 | 91 850 122 Hop . | . . . Pick Up 29 | 11 18 . Fast Attach . | . . . Attach 9 | 7 2 . Detach . | . . . Swap 4 | 1 3 . Drop 2 | . 2 . Fire 17 | . 17 . Melee . | . . . Ram . | . . . Kick . | . . . Crush . | . . . Escape Stasis . | . . . Rewire . | . . . Trap . | . . . Miscellaneous . | . . . Route ------- -11/Scrapyard -10/Materials (discovered 6 exits: *Mat x3 / *Min x2 / *Sub) -10/Mines History --------- Turn | Location | Event 16 | -11/Scrapyard | Identified exit to Materials 16 | -11/Scrapyard | Discovered exit to Materials (range 14) 213 | -11/Scrapyard | Entered Materials 213 | -10/Materials | Evolved 1 slot: Utility x1 214 | -10/Materials | Met a group of wandering Federalists 225 | -10/Materials | Identified exit to Mines 313 | -10/Materials | Build established: Hacker-Mutant 436 | -10/Materials | Identified exit to Materials 436 | -10/Materials | Discovered exit to Materials (range 4) 595 | -10/Materials | Discovered exit to Materials (range 14) 1316 | -10/Materials | Discovered exit to Materials (range 3) 1369 | -10/Materials | Identified exit to Subcaves 1369 | -10/Materials | Discovered exit to Subcaves (range 6) 1911 | -10/Materials | Repaired Lgt. Treads 2149 | -10/Materials | Entered Mines 2229 | -10/Mines | Learned 2 Materials zone layouts 2369 | -10/Mines | Assembled infested the area 2374 | -10/Mines | Assisted by a Guerilla fighting off Assembled 2436 | -10/Mines | Core integrity fell below 50% 2447 | -10/Mines | Core integrity fell below 20% 2454 | -10/Mines | Destroyed by D-53 Grenadier with Mini Grenade Launcher Last Messages --------------- 02418_ EM Pulse Gun destroyed. 02421_ U-05 Engineer lays Concrete. 02422_ The unstable cave ceiling collapses. 02422_ U-05 Engineer destroyed. 02424_ The unstable cave ceiling collapses. 02426_ Lgt. Treads destroyed. 02427_ The unstable cave ceiling collapses. 02432_ Ion Engine destroyed. 02433_ The unstable cave ceiling collapses. 02436_ Lgt. Treads destroyed. 02437_ The unstable cave ceiling collapses. 02439_ U-05 Engineer builds a Wall. 02441_ The unstable cave ceiling collapses. 02443_ U-05 Engineer lays Concrete. 02445_ U-05 Engineer builds a Wall. 02446_ U-05 Engineer destroyed. 02449_ U-05 Engineer lays Concrete. 02450_ Beam Cannon destroyed. 02451_ The unstable cave ceiling collapses. 02451_ U-05 Engineer builds a Wall. Map ----- +----------------------------------------------------+ | ???????????????????????## ####??????????????? | | ??????????????????????## ???????????????? | | ?????????????????????## #????????????????? | | ????????????????????## #????????????????? | | ???????#???????????## ####?????????????? | | ??????? ???????????# #??????????? | | ??????? ???????????# ## #??????????? | | ??????? ???????????# ##?######## #??????????? | | ??????? ???????????# ##??????????????????????? | | ??????? ???????????# ##???????????????????????? | | ??????# #??????????# ##????????????????????????? | | ??????# #??????????# ##?????????????????????????? | | ###??? #??????????# #??????????????????????????? | | ##??# #??????????# #??????????????????????????? | | ##?# #??????????# #??????????????????????????? | | ### ##?????????# #??????????????????????????? | | ## ##????????# #??????????????????????????? | | #????????# #??????????????????????????? | | ## #????????# #??????????????????????????? | | ### ##???????## #??????????????????????????? | | #?### #????????# ##?????????????????????????? | | #???# #?######?# #####?????????????????????? | | ##??# ### #### # ##????????????????????? | | #??# ## #?# #????????????????????? | | ##?# ## ### #######??????????????? | | ### #?# ## @ =t #??????????????? | | # ## $#### ## #### ????????? | | # ## #???????????????????? | | ### #???????????????????? | | ##?##########u ##???????????????????? | | ##??????????## #????????????????????? | | ##????????# ##????????????????????? | | ##?????### dd ##????????????????????? | | ##?## # # ##?????????????????????? | | ### # ## ###??????????????????????? | | # ##???????????????????????? | | ## # #????????????????????????? | | % #???????????????????????? | | #??????????????????????? | | # # #??????????????????????? | | ## ##??????????????????????? | | ### ## #####???????????????????????? | | #?#?###### ###???????????????????????????? | | ###??????#####?????????????????????????????? | | #????????????????????????????????????????? | | #????????????????????????????????????????? | | ### #??????????????????????????????????????? | | #??## #??????????????????????????????????????? | | # ##?????#??????????????????????????????????????? | | ####?????????????????????????????????????????????? | +----------------------------------------------------+ Best States ------------- Heat Dissipation 25 Energy Generation 10 Energy Capacity 250 Matter Stores 300 Matter Capacity 300 Sight Range 16 Terrain Scan Density 10 Armor Coverage 150 Resistance: KI 35 Resistance: TH 35 Resistance: EX 35 Resistance: EM 35 Resistance: I 35 Resistance: S 35 Resistance: P 35 Utility Shielding 33 Evasion (%) 40 Recoil Reduction 2 Offensive Hacking 20 Item Schematics ----------------- None Robot Schematics ------------------ None Fabricated ------------ Nothing Repaired ---------- Lgt. Treads | 87% | -10/Materials Studied --------- None Alien Tech Used ----------------- None Achievements -------------- DATA ERROR: Steam Global Achievement% Librarian Challenges ------------ None Game ------ Seed PhasingEnhancedCycler Manual? 0 Play Time 00:34:02 Cumulative 11.6 hours Start 2026.09.11 @ 19:53:58 End 2026.09.11 @ 20:28:30 Sessions 1 Manual Loads 0 Difficulty Explorer Special Mode None Game No. 10 Rogue 9 Adventurer 0 Explorer 1 Win Type - Total 0 Types 0/0/0/0/0/0/0/0/0/0 Lore% 2 Gallery% 9 Achievement% 5 Wizard Run 0 Options --------- Layout 1 ASCII 0 Keyboard 0 Movement Numpad Keybinds 0 Fullscreen 1 Font 48/Smallcaps Map View 50x40 Zoom Use 0% Tactical HUD 1 Map Filters NONE Filters NONE Steam 1 RUN: 2ad78a13-3b24-4254-8d6d-c82a39f078db